bitfinex/quotes_SOLUSD_20250721
["timestamp","ask_amount","ask_price","bid_price","bid_amount"]
[1753107036223,89.8,192.45,192.41,12.70484127]
[1753107036418,7.67985201,192.46,192.45,26.0]
[1753107036637,7.67985201,192.46,192.45,7.5076062]
[1753107036841,54.10468397,192.47,192.45,0.72]
[1753107037053,54.10468397,192.47,192.46,26.0]
[1753107038034,60.89229017,192.47,192.43,0.72]
[1753107038354,6.7876062,192.44,192.4,0.64805396]
[1753107038552,6.7876062,192.44,192.39,32.7876062]
[1753107038553,37.26,192.43,192.39,32.7876062]
[1753107039051,37.26,192.43,192.39,6.7876062]
[1753107039356,6.7876062,192.41,192.36,6.7876062]
[1753107039650,54.04468397,192.4,192.39,26.0]
[1753107039840,37.26,192.4,192.35,6.7876062]
[1753107040050,37.26,192.4,192.33,0.2]
[1753107040051,16.78468397,192.39,192.33,0.2]
[1753107040225,16.78468397,192.37,192.33,0.2]
[1753107040540,54.04468397,192.37,192.35,26.0]
[1753107040740,54.04468397,192.37,192.34,0.72]
[1753107041039,60.83229017,192.37,192.35,26.0]
[1753107041248,60.83229017,192.37,192.34,0.72]
[1753107041743,16.78468397,192.35,192.33,0.2]
[1753107042046,37.26,192.34,192.33,0.2]
[1753107042219,54.04468397,192.34,192.33,0.2]
[1753107042541,66.03141671,192.34,192.33,0.2]
[1753107042926,60.83229017,192.34,192.33,0.2]
[1753107043126,70.14474946,192.34,192.33,0.2]
[1753107043341,64.94562292,192.34,192.33,0.2]
[1753107043736,54.04468397,192.34,192.33,26.2]
[1753107044355,54.04468397,192.34,192.33,0.2]
[1753107044554,16.78468397,192.34,192.33,26.2]
[1753107044947,54.04468397,192.34,192.33,26.2]
[1753107045148,54.04468397,192.34,192.33,0.2]
[1753107045827,54.04468397,192.34,192.33,0.92]
[1753107046437,37.26,192.34,192.33,6.11939686]
[1753107047645,16.78468397,192.37,192.33,6.11939686]
[1753107047862,16.78468397,192.35,192.34,26.72]
[1753107048060,16.78468397,192.35,192.34,26.0]
[1753107048557,37.26,192.36,192.34,26.0]
[1753107048877,54.04468397,192.36,192.35,26.72]
[1753107049048,54.04468397,192.36,192.35,26.0]
[1753107050578,70.1442089,192.36,192.33,26.2]
[1753107050878,16.78468397,192.35,192.33,26.92]
[1753107051173,37.26,192.34,192.33,26.2]
[1753107052175,70.14474946,192.34,192.33,0.2]
[1753107055149,59.24381051,192.34,192.33,0.2]
[1753107055361,37.26,192.34,192.33,0.2]
[1753107055676,37.26,192.34,192.33,26.92]
[1753107057586,89.8,192.35,192.33,0.92]
[1753107057889,16.78468397,192.38,192.36,26.0]
[1753107058082,37.24,192.37,192.36,26.0]
[1753107059395,53.33925983,192.37,192.35,26.0]
[1753107060380,10.90093895,192.36,192.33,0.2]
[1753107060575,27.68562292,192.34,192.33,0.2]
[1753107060865,39.33214946,192.34,192.33,0.2]
[1753107061512,16.78468397,192.33,192.31,0.2]
[1753107061660,27.68562292,192.31,192.28,0.03]
[1753107061859,29.31882292,192.29,192.25,0.03]
[1753107062060,33.83812292,192.27,192.25,0.03]
[1753107062271,16.78468397,192.25,192.15,0.66]
[1753107062567,10.90093895,192.21,192.18,26.0]
[1753107062778,127.04,192.2,192.19,26.0]
[1753107063379,127.04,192.2,192.18,26.0]
[1753107063683,127.04,192.2,192.17,0.66]
[1753107064206,127.04,192.2,192.18,26.0]
[1753107064695,37.24,192.19,192.16,10.90093895]
[1753107064892,37.24,192.19,192.18,26.0]
[1753107065293,37.24,192.19,192.16,10.90093895]
[1753107065294,44.39128434,192.19,192.13,0.2]
[1753107065501,23.59108397,192.18,192.13,0.2]
[1753107065701,10.90093895,192.14,192.13,0.2]
[1753107065907,16.78468397,192.16,192.13,0.2]
[1753107066084,10.90093895,192.14,192.13,0.2]
[1753107066984,27.68562292,192.14,192.13,0.2]
[1753107067385,16.78468397,192.16,192.13,0.2]
[1753107067586,16.78468397,192.15,192.13,0.2]
[1753107068006,27.68562292,192.15,192.13,0.2]
[1753107068310,10.90093895,192.14,192.13,0.2]
[1753107068710,16.78468397,192.18,192.13,0.86]
[1753107068901,10.90093895,192.17,192.13,0.86]
[1753107069208,16.78468397,192.18,192.13,0.86]
[1753107069209,10.90093895,192.16,192.13,0.2]
[1753107069410,10.90093895,192.14,192.13,0.2]
[1753107069793,11.34093895,192.14,192.13,0.2]
[1753107070305,0.44,192.16,192.13,0.2]
[1753107070493,10.90093895,192.15,192.13,26.86]
[1753107070693,18.29278397,192.19,192.13,26.86]
[1753107070903,16.78468397,192.18,192.14,0.66]
[1753107071088,10.90093895,192.16,192.14,39.8]
[1753107071290,10.90093895,192.2,192.17,26.0]
[1753107071484,10.90093895,192.21,192.18,26.66]
[1753107071689,6.8238,192.26,192.19,26.66]
[1753107071999,10.90093895,192.24,192.2,26.66]
[1753107072202,10.90093895,192.23,192.21,39.14]
[1753107072400,10.90093895,192.24,192.21,39.8]
[1753107072601,6.3838,192.26,192.22,0.66]
[1753107072806,10.90093895,192.25,192.23,0.66]
[1753107073697,10.90093895,192.25,192.21,45.00255646]
[1753107073896,10.90093895,192.25,192.22,0.66]
[1753107074217,16.78468397,192.28,192.24,26.0]
[1753107074398,10.90093895,192.26,192.25,26.0]
[1753107074592,16.78468397,192.28,192.25,26.66]
[1753107074915,10.90093895,192.29,192.26,39.74]
[1753107075109,10.90093895,192.3,192.27,0.66]
[1753107075306,16.78468397,192.3,192.25,0.66]
[1753107075512,10.90093895,192.29,192.26,0.66]
[1753107075714,27.68562292,192.3,192.27,0.66]
[1753107076015,10.90093895,192.31,192.28,0.66]
[1753107076214,10.90093895,192.32,192.29,0.66]
[1753107077394,10.90093895,192.31,192.29,0.66]
[1753107077597,10.90093895,192.32,192.3,26.0]
[1753107077792,10.90093895,192.31,192.3,26.0]
[1753107078618,10.90093895,192.31,192.3,39.02]
[1753107078806,16.78468397,192.3,192.24,0.66]
[1753107079020,10.90093895,192.25,192.23,39.0]
[1753107079216,10.90093895,192.26,192.25,26.0]
[1753107080024,10.90093895,192.26,192.23,38.98]
[1753107080327,10.90093895,192.24,192.21,38.98]
[1753107080510,16.78468397,192.25,192.21,0.03]
[1753107080511,10.90093895,192.22,192.21,0.03]
[1753107081624,16.78468397,192.22,192.21,0.03]
[1753107081826,27.68562292,192.22,192.21,0.03]
[1753107082025,10.90093895,192.22,192.21,0.03]
[1753107082327,11.34093895,192.22,192.21,0.03]
[1753107083031,16.78468397,192.2,192.17,0.03]
[1753107083211,32.88907801,192.18,192.17,0.03]
[1753107083618,33.32907801,192.18,192.17,0.03]
[1753107083916,46.33771574,192.18,192.13,0.2]
[1753107084218,27.68562292,192.14,192.13,0.2]
[1753107084530,34.02382292,192.14,192.13,0.2]
[1753107084825,34.43382292,192.14,192.13,0.2]
[1753107085207,39.63836127,192.14,192.13,0.2]
[1753107086406,32.89016127,192.14,192.13,0.2]
[1753107087014,33.30016127,192.14,192.13,0.2]
[1753107088235,183.10016127,192.14,192.13,0.2]
[1753107090337,177.48562292,192.14,192.13,0.2]
[1753107090524,216.36562292,192.14,192.13,0.2]
[1753107090929,205.46468397,192.14,192.13,0.86]
[1753107091235,10.90093895,192.16,192.13,0.86]
[1753107091551,10.90093895,192.15,192.14,0.71]
[1753107091835,10.90093895,192.15,192.13,0.91]
[1753107092213,38.84,192.16,192.13,0.91]
[1753107092412,10.90093895,192.15,192.13,0.91]
[1753107092627,27.68562292,192.14,192.13,0.2]
[1753107094519,32.89016127,192.14,192.13,0.2]
[1753107095318,21.98780292,192.2,192.13,0.91]
[1753107095514,10.90093895,192.17,192.14,0.71]
[1753107095714,38.74,192.16,192.14,0.71]
[1753107095936,10.90093895,192.15,192.13,0.2]
[1753107096151,10.90093895,192.14,192.13,0.2]
[1753107096349,11.31093895,192.14,192.13,0.2]
[1753107096639,34.65602292,192.14,192.13,0.2]
[1753107097132,73.39602292,192.14,192.13,0.2]
[1753107097523,67.69962232,192.14,192.13,0.2]
[1753107097831,67.69962232,192.14,192.13,1e-08]
[1753107098036,78.60056127,192.14,192.13,1e-08]
[1753107098634,67.69962232,192.14,192.13,1e-08]
[1753107098940,80.19586127,192.14,192.13,1e-08]
[1753107099534,91.09680022,192.14,192.13,1e-08]
[1753107099739,80.19586127,192.14,192.13,1e-08]
[1753107099935,91.09680022,192.14,192.13,1e-08]
[1753107100136,52.35680022,192.14,192.13,1e-08]
[1753107100324,16.78468397,192.13,192.03,0.71]
[1753107100525,10.90093895,192.05,192.03,0.71]
[1753107100731,49.72093895,192.05,192.03,0.71]
[1753107101544,10.90093895,192.04,192.02,26.0]
[1753107101850,10.90093895,192.04,192.03,0.71]
[1753107102147,49.72093895,192.05,192.03,0.71]
[1753107102351,49.72093895,192.05,192.03,26.71]
[1753107102530,49.72093895,192.05,192.04,0.71]
[1753107102733,38.82,192.05,192.04,0.71]
[1753107102932,49.72093895,192.05,192.04,0.71]
[1753107103149,38.82,192.05,192.04,0.71]
[1753107103344,49.72093895,192.05,192.04,0.71]
[1753107103651,16.78468397,192.04,192.01,26.0]
[1753107103837,89.8,192.03,192.0,26.0]
[1753107104077,106.58468397,192.03,192.02,0.71]
[1753107104250,156.24562292,192.03,192.02,0.71]
[1753107104438,156.24562292,192.03,192.0,26.0]
[1753107104634,156.24562292,192.03,191.99,0.03]
[1753107104843,89.8,192.03,192.01,0.71]
[1753107105038,128.58,192.03,192.01,0.71]
[1753107105348,38.78,192.02,192.01,0.71]
[1753107105533,49.68093895,192.02,192.0,26.0]
[1753107105737,10.90093895,192.01,192.0,0.71]
[1753107106042,16.78468397,192.0,191.99,0.03]
[1753107106250,66.46562292,192.0,191.99,0.03]
[1753107106932,66.87562292,192.0,191.99,0.03]
[1753107107553,82.9848952,192.0,191.99,1e-08]
[1753107108258,104.18862853,192.0,191.95,0.03]
[1753107108572,27.68562292,191.96,191.95,0.03]
[1753107108741,16.78468397,191.89,191.85,0.71]
[1753107108940,10.90093895,191.86,191.85,0.71]
[1753107109253,49.62093895,191.86,191.81,5.21343587]
[1753107109637,38.72,191.86,191.84,26.0]
[1753107109839,16.78468397,191.89,191.85,0.71]
[1753107110050,16.78468397,191.89,191.81,18.24716716]
[1753107110051,16.78468397,191.87,191.86,0.71]
[1753107110231,27.68562292,191.87,191.85,0.71]
[1753107110432,16.78468397,191.85,191.83,0.71]
[1753107110657,49.60093895,191.84,191.83,0.71]
[1753107110858,66.38562292,191.84,191.83,0.71]
[1753107111040,66.38562292,191.84,191.82,26.0]
[1753107111241,27.68562292,191.83,191.8,0.71]
[1753107111445,49.60093895,191.82,191.8,0.71]
[1753107111638,38.7,191.82,191.81,0.71]
[1753107112258,16.78468397,191.81,191.79,0.2]
[1753107112454,27.68562292,191.81,191.79,0.2]
[1753107112649,55.46468397,191.8,191.79,0.2]
[1753107112856,38.68,191.8,191.79,0.2]
[1753107113243,38.68,191.8,191.79,26.2]
[1753107113560,38.68,191.8,191.79,26.91]
[1753107113860,66.36562292,191.8,191.79,0.2]
[1753107114046,71.57938725,191.8,191.79,0.2]
[1753107114753,66.36562292,191.8,191.79,0.2]
[1753107114949,71.57938725,191.8,191.79,0.2]
[1753107115344,27.68562292,191.8,191.79,0.2]
[1753107115550,27.68562292,191.8,191.79,0.91]
[1753107115759,66.28562292,191.8,191.79,0.91]
[1753107115944,66.28562292,191.8,191.79,0.2]
[1753107116266,71.49938725,191.8,191.79,0.2]
[1753107116447,71.90938725,191.8,191.79,0.2]
[1753107116657,71.49938725,191.8,191.79,0.2]
[1753107117045,71.90938725,191.8,191.79,0.2]
[1753107118150,106.58468397,191.79,191.7,0.71]
[1753107118347,27.68562292,191.71,191.7,0.71]
[1753107118548,66.34562292,191.71,191.7,0.71]
[1753107118763,10.90093895,191.72,191.7,0.71]
[1753107118954,89.8,191.79,191.7,0.71]
[1753107118955,38.66,191.71,191.7,0.71]
[1753107119155,38.66,191.71,191.69,5.21650335]
[1753107119353,89.8,191.79,191.7,26.0]
[1753107119354,10.90093895,191.75,191.7,26.0]
[1753107119560,38.66,191.74,191.7,10.90093895]
[1753107119763,16.78468397,191.73,191.71,0.71]
[1753107119953,38.86,191.72,191.67,26.0]
[1753107120264,16.78468397,191.71,191.64,1.10618954]
[1753107120447,27.68562292,191.69,191.65,0.71]
[1753107120646,38.86,191.68,191.66,0.71]
[1753107120843,38.86,191.68,191.67,0.71]
[1753107121140,66.54562292,191.68,191.65,0.71]
[1753107121343,27.68562292,191.67,191.63,0.66]
[1753107121574,55.70468397,191.66,191.65,26.0]
[1753107121743,38.92,191.66,191.63,0.66]
[1753107121943,38.92,191.66,191.64,0.66]
[1753107122171,38.92,191.66,191.65,0.66]
[1753107122547,16.78468397,191.65,191.62,0.1067166]
[1753107122854,16.78468397,191.55,191.45,0.66]
[1753107123054,10.90093895,191.49,191.48,2.70176876]
[1753107123266,38.96,191.49,191.48,2.70176876]
[1753107123670,49.86093895,191.49,191.45,26.66]
[1753107123854,10.90093895,191.47,191.45,26.66]
[1753107124056,38.96,191.47,191.45,26.0]
[1753107124280,55.76468397,191.52,191.49,26.0]
[1753107124475,55.76468397,191.52,191.5,26.66]
[1753107124663,31.11,191.59,191.51,0.66]
[1753107124865,6.5303,191.61,191.52,36.90093895]
[1753107124866,49.88093895,191.58,191.52,36.90093895]
[1753107125060,27.68562292,191.6,191.54,10.90093895]
[1753107125378,39.0,191.62,191.55,37.56093895]
[1753107125581,10.90093895,191.61,191.55,0.66]
[1753107125764,10.90093895,191.57,191.52,5.88131797]
[1753107125970,39.0,191.57,191.52,0.66]
[1753107126171,10.90093895,191.55,191.52,0.66]
[1753107126477,10.90093895,191.53,191.49,0.66]
[1753107126657,10.90093895,191.51,191.46,5.22302308]
[1753107126859,10.90093895,191.48,191.42,0.66]
[1753107127058,49.98093895,191.5,191.44,10.90093895]
[1753107127286,39.08,191.51,191.47,10.90093895]
[1753107127465,39.08,191.51,191.48,0.66]
[1753107127660,6.4121,191.62,191.5,10.90093895]
[1753107127872,10.90093895,191.6,191.53,10.90093895]
[1753107128183,10.90093895,191.59,191.54,0.66]
[1753107128372,39.12,191.58,191.54,0.66]
[1753107128576,39.12,191.58,191.55,11.56093895]
[1753107128781,39.14,191.62,191.57,10.90093895]
[1753107128965,50.04093895,191.64,191.58,11.56093895]
[1753107129167,39.14,191.66,191.61,10.90093895]
[1753107129397,39.14,191.66,191.62,11.56093895]
[1753107129562,39.14,191.66,191.62,10.90093895]
[1753107129757,50.06093895,191.69,191.64,5.2181173]
[1753107129957,50.06093895,191.69,191.64,5.8781173]
[1753107130464,50.06093895,191.69,191.65,0.66]
[1753107130891,50.06093895,191.69,191.64,5.2181173]
[1753107131089,39.16,191.69,191.65,0.66]
[1753107131588,50.06093895,191.69,191.65,0.66]
[1753107131766,50.06093895,191.69,191.65,5.87771013]
[1753107131965,50.06093895,191.69,191.65,0.66]
[1753107132165,10.90093895,191.68,191.62,0.66]
[1753107132383,10.90093895,191.68,191.63,5.21837378]
[1753107132690,39.16,191.69,191.64,11.56093895]
[1753107133990,39.16,191.69,191.65,0.66]
[1753107134574,39.16,191.69,191.66,0.66]
[1753107136064,39.16,191.69,191.64,16.11902442]
[1753107136386,39.16,191.69,191.64,16.77902442]
[1753107136560,39.16,191.69,191.65,0.66]
[1753107137265,39.16,191.69,191.64,10.90093895]
[1753107137466,10.90093895,191.66,191.59,0.66]
[1753107137670,17.19468397,191.68,191.59,0.66]
[1753107137671,10.90093895,191.63,191.59,0.66]
[1753107137867,39.02,191.62,191.6,26.0]
[1753107138075,39.02,191.62,191.57,10.90093895]
[1753107138394,10.90093895,191.61,191.55,11.56093895]
[1753107138689,10.90093895,191.61,191.55,0.66]
[1753107138871,39.02,191.62,191.55,11.56093895]
[1753107139072,39.02,191.62,191.57,10.90093895]
[1753107139285,10.0,191.75,191.59,16.12041804]
[1753107139489,10.90093895,191.7,191.65,10.90093895]
[1753107139668,16.78468397,191.72,191.65,0.66]
[1753107139669,39.0,191.69,191.65,0.66]
[1753107139869,39.0,191.69,191.66,10.90093895]
[1753107140088,10.90093895,191.73,191.68,10.90093895]
[1753107140275,10.90093895,191.77,191.71,10.90093895]
[1753107140474,10.90093895,191.74,191.69,11.56093895]
[1753107140790,39.0,191.76,191.71,10.90093895]
[1753107141090,39.0,191.76,191.72,11.56093895]
[1753107141290,39.0,191.76,191.74,5.21539584]
[1753107141508,39.0,191.76,191.74,5.87539584]
[1753107141889,39.0,191.76,191.74,20.57867048]
[1753107142195,39.0,191.76,191.73,20.57888895]
[1753107142506,39.0,191.76,191.74,16.02327464]
[1753107142684,39.0,191.76,191.75,0.66]
[1753107143003,39.0,191.76,191.75,16.02327464]
[1753107143369,39.0,191.76,191.75,21.23839849]
[1753107143571,20.57654195,191.82,191.75,21.23839849]
[1753107143787,15.36327464,191.83,191.78,15.36327464]
[1753107143982,38.92,191.81,191.79,15.36327464]
[1753107144290,38.92,191.81,191.75,5.21512385]
[1753107144291,38.92,191.81,191.8,16.02327464]
[1753107144492,16.91257464,191.86,191.8,16.02327464]
[1753107144493,38.92,191.84,191.8,16.02327464]
[1753107144697,38.92,191.84,191.81,0.66]
[1753107144993,38.92,191.84,191.81,16.02327464]
[1753107145492,38.92,191.84,191.78,31.87422974]
[1753107145691,38.92,191.84,191.8,15.36327464]
[1753107146190,38.92,191.84,191.81,15.36327464]
[1753107146391,38.92,191.84,191.8,16.02327464]
[1753107146689,38.92,191.84,191.76,21.23812649]
[1753107146690,15.36327464,191.82,191.76,21.23812649]
[1753107146889,54.28327464,191.84,191.78,15.36327464]
[1753107147073,106.58468397,191.88,191.79,0.66]
[1753107147272,6.181,191.89,191.79,0.66]
[1753107147474,45.301,191.89,191.85,15.36327464]
[1753107147673,39.12,191.89,191.85,15.36327464]
[1753107147894,39.12,191.89,191.83,26.0]
[1753107148071,54.48327464,191.89,191.84,15.36327464]
[1753107148273,39.12,191.89,191.84,16.02327464]
[1753107148587,15.36327464,191.91,191.85,16.02327464]
[1753107148791,39.12,191.91,191.85,0.66]
[1753107149119,0.06,191.88,191.85,16.02327464]
[1753107149981,0.06,191.88,191.86,0.66]
[1753107150593,0.06,191.88,191.83,26.0]
[1753107150792,0.06,191.88,191.86,0.66]
[1753107151695,0.06,191.88,191.87,0.71]
[1753107152084,0.06,191.88,191.87,16.07327464]
[1753107153896,0.06,191.88,191.84,0.71]
[1753107154202,0.06,191.88,191.85,0.71]
[1753107154501,0.06,191.88,191.83,41.36327464]
[1753107154686,0.06,191.88,191.84,16.07327464]
[1753107155098,0.06,191.88,191.83,26.0]
[1753107155099,0.06,191.88,191.86,15.36327464]
[1753107155299,0.06,191.88,191.87,15.36327464]
[1753107155506,0.06,191.88,191.87,16.07327464]
[1753107155697,0.06,191.88,191.87,47.28513683]
[1753107156590,0.06,191.88,191.87,21.28513683]
[1753107156791,0.06,191.88,191.87,47.28513683]
[1753107156998,0.06,191.88,191.87,21.28513683]
[1753107158807,15.42327464,191.88,191.8,0.71]
[1753107158981,15.36327464,191.85,191.8,0.71]
[1753107159189,15.36327464,191.85,191.82,26.0]
[1753107159503,15.36327464,191.87,191.82,26.71]
[1753107159897,15.36327464,191.85,191.82,26.71]
[1753107160207,15.36327464,191.85,191.82,26.0]
[1753107161009,15.36327464,191.85,191.79,0.71]
[1753107161306,5.21207444,191.87,191.8,26.0]
[1753107161307,15.36327464,191.84,191.8,26.0]
[1753107161497,10.9566753,191.85,191.81,26.0]
[1753107161801,16.16908082,191.85,191.8,10.9566753]
[1753107162006,16.16908082,191.85,191.8,0.71]
[1753107162184,10.9566753,191.85,191.81,0.71]
[1753107162381,55.14887039,191.86,191.81,0.71]
[1753107162584,38.98,191.86,191.82,0.71]
[1753107163207,49.9366753,191.86,191.83,0.71]
[1753107163585,49.9366753,191.86,191.81,11.6666753]
[1753107163785,38.98,191.86,191.82,0.71]
[1753107163986,49.9366753,191.86,191.82,0.71]
[1753107164796,38.98,191.86,191.82,0.71]
[1753107165307,55.14882975,191.86,191.82,0.71]
[1753107165515,49.9366753,191.86,191.82,0.71]
[1753107166313,55.14883478,191.86,191.82,0.71]
[1753107166620,55.14883478,191.86,191.8,16.88038951]
[1753107166802,55.14883478,191.86,191.8,11.6666753]
[1753107166999,55.14883478,191.86,191.8,16.88043754]
[1753107167714,55.14883478,191.86,191.8,11.6666753]
[1753107168216,10.9566753,191.82,191.79,26.0]
[1753107168415,10.9566753,191.82,191.77,10.9566753]
[1753107168603,49.8566753,191.82,191.76,10.9566753]
[1753107168803,49.8566753,191.82,191.79,26.0]
[1753107169316,38.9,191.82,191.79,26.0]
[1753107170399,38.9,191.82,191.79,26.71]
[1753107170997,44.11332065,191.82,191.79,26.71]
[1753107171193,38.9,191.82,191.79,26.71]
[1753107171814,38.9,191.82,191.8,0.71]
[1753107173337,0.06,191.88,191.81,37.6666753]
[1753107173493,11.0166753,191.88,191.83,10.9566753]
[1753107173698,0.06,191.88,191.86,10.9566753]
[1753107173901,0.06,191.88,191.86,11.6666753]
[1753107174206,0.06,191.88,191.87,11.6666753]
[1753107174793,0.06,191.88,191.87,10.9566753]
[1753107176210,0.06,191.88,191.87,11.6666753]
[1753107176912,0.06,191.88,191.84,5.92266162]
[1753107177234,0.06,191.88,191.85,0.71]
[1753107177431,0.06,191.88,191.86,10.9566753]
[1753107177605,0.06,191.88,191.87,10.9566753]
[1753107180507,0.06,191.88,191.84,10.9566753]
[1753107180832,0.06,191.88,191.82,10.9566753]
[1753107180833,11.3666753,191.87,191.82,10.9566753]
[1753107181012,89.8,191.87,191.83,5.92284582]
[1753107181330,95.01194624,191.87,191.83,0.71]
[1753107181511,95.01194624,191.87,191.81,10.9566753]
[1753107181512,0.41,191.86,191.81,10.9566753]
[1753107181835,10.9566753,191.83,191.77,16.83124427]
[1753107182044,89.8,191.82,191.77,0.66]
[1753107182246,100.7566753,191.82,191.77,0.66]
[1753107182538,89.8,191.82,191.78,10.9566753]
[1753107182726,89.8,191.82,191.8,10.9566753]
[1753107182903,89.8,191.82,191.81,11.6166753]
[1753107183108,89.8,191.82,191.81,0.66]
[1753107183544,89.8,191.82,191.8,10.9566753]
[1753107183723,89.8,191.82,191.8,11.6166753]
[1753107184127,89.8,191.82,191.81,11.6166753]
[1753107184340,89.8,191.86,191.81,11.6166753]
[1753107184624,89.8,191.86,191.82,11.6166753]
[1753107185012,89.8,191.86,191.82,10.9566753]
[1753107185219,89.8,191.86,191.81,5.21325762]
[1753107185220,89.8,191.86,191.83,11.6166753]
[1753107185436,89.8,191.86,191.84,11.6166753]
[1753107185927,89.8,191.86,191.84,0.66]
[1753107186119,89.8,191.86,191.84,11.6166753]
[1753107186318,89.8,191.86,191.85,0.66]
[1753107186521,0.06,191.88,191.85,11.6166753]
[1753107186831,0.06,191.88,191.84,10.9566753]
[1753107187036,0.06,191.88,191.83,0.66]
[1753107187512,0.06,191.88,191.83,11.6166753]
[1753107188010,11.4266753,191.88,191.82,10.9566753]
[1753107188210,11.0166753,191.88,191.82,10.9566753]
[1753107188635,0.06,191.88,191.84,10.9566753]
[1753107188810,38.7,191.88,191.84,11.6166753]
[1753107189013,38.7,191.88,191.83,36.9566753]
[1753107189212,54.86842305,191.88,191.83,26.66]
[1753107189411,54.86842305,191.88,191.83,37.6166753]
[1753107189831,43.91174775,191.88,191.83,37.6166753]
[1753107190147,38.7,191.88,191.86,10.9566753]
[1753107190308,0.06,191.88,191.86,11.6166753]
[1753107190527,0.06,191.88,191.87,0.66]
[1753107193154,0.06,191.88,191.85,16.82900413]
[1753107193330,0.06,191.88,191.84,10.9566753]
[1753107193530,0.06,191.88,191.83,26.0]
[1753107193531,10.9566753,191.87,191.83,26.0]
[1753107193834,49.9466753,191.87,191.83,26.0]
[1753107195056,38.58,191.87,191.83,37.6166753]
[1753107196051,38.58,191.87,191.83,36.9566753]
[1753107196455,38.58,191.87,191.84,0.66]
[1753107197134,38.58,191.87,191.83,36.9566753]
[1753107197631,38.64,191.87,191.83,42.82956351]
[1753107197840,0.06,191.87,191.84,11.6166753]
[1753107198052,0.06,191.87,191.85,11.6166753]
[1753107198355,0.06,191.87,191.83,26.0]
[1753107198553,0.06,191.87,191.84,0.66]
[1753107199058,0.06,191.87,191.84,11.6166753]
[1753107199640,0.06,191.87,191.85,0.66]
[1753107199844,0.06,191.87,191.84,0.66]
[1753107202366,0.06,191.87,191.84,11.6166753]
[1753107203261,0.06,191.87,191.84,10.9566753]
[1753107203563,11.3666753,191.86,191.83,26.0]
[1753107203785,54.66888867,191.86,191.83,26.0]
[1753107204557,43.71221337,191.86,191.83,26.0]
[1753107204765,43.71221337,191.86,191.84,0.66]
[1753107204766,38.5,191.86,191.84,0.66]
[1753107205090,0.06,191.87,191.84,11.6166753]
[1753107205375,0.06,191.87,191.85,0.66]
[1753107205541,0.06,191.87,191.84,0.66]
[1753107205748,10.9566753,191.86,191.83,26.0]
[1753107205947,38.58,191.85,191.83,26.0]
[1753107207067,38.58,191.85,191.83,36.9566753]
[1753107207265,38.58,191.85,191.84,0.66]
[1753107207675,38.58,191.85,191.83,36.9566753]
[1753107207873,38.58,191.85,191.83,37.6166753]
[1753107208342,38.58,191.85,191.84,0.66]
[1753107208742,0.06,191.87,191.84,0.66]
[1753107208943,38.74,191.87,191.85,0.66]
[1753107211142,38.74,191.87,191.85,7.50368832]
[1753107211366,38.74,191.87,191.86,0.65]
[1753107211564,0.06,191.88,191.86,7.49368832]
[1753107211779,0.06,191.88,191.87,7.49368832]
[1753107212285,0.06,191.88,191.87,12.70555051]
[1753107212447,0.06,191.92,191.9,26.0]
[1753107212647,0.06,191.92,191.91,6.84368832]
[1753107212949,0.06,191.92,191.91,7.49368832]
[1753107214275,0.06,191.92,191.91,12.7044642]
[1753107215182,0.06,191.92,191.91,16.80066191]